{"text_format":"1","workbook":"xlsx","n_sheets":4,"sheets":["Etiquette","Equivalences","Lisez-moi","Coefficients"],"not_rendered":{"charts":0,"images":0,"macros":0,"external_links":1,"defined_names":21,"comments":0,"pivot_tables":0},"unopened":[],"bounds":{"document_bytes":16777216,"sheet_cells":100000,"rows_first":2000,"rows_last":500,"rows_between":2000,"halvings":0,"cell_chars":16384,"cell_head_chars":4096},"cells_cut":0,"cells_raw":0,"read":"whole","date_system":"1900"}

{"sheet":"Etiquette","index":0,"n_rows":60,"n_cols":22,"rows_kept":60,"cut":false,"hidden":false,"merged":[[59,0,59,18],[9,2,9,18],[2,2,2,18],[6,14,6,15],[4,14,4,17],[4,3,4,11],[17,12,17,15],[13,12,13,15],[25,1,33,1],[27,14,27,15],[28,14,28,15],[29,14,29,15],[57,0,57,18],[0,1,0,18],[38,14,38,15],[11,3,11,10],[22,2,22,18],[25,14,25,15],[26,14,26,15],[25,16,33,18],[13,2,13,10],[14,12,14,15],[15,12,15,15],[16,12,16,15],[40,1,48,1],[40,14,40,15],[41,14,41,15],[42,14,42,15],[43,14,43,15],[44,14,44,15],[45,14,45,15],[48,14,48,15],[46,14,46,15],[47,14,47,15],[15,2,15,10],[17,2,17,10],[34,14,34,15],[30,14,30,15],[31,14,31,15],[32,14,32,15],[33,14,33,15],[37,2,37,18],[40,16,48,18],[49,14,49,15],[23,14,23,15],[31,2,31,9],[32,2,32,10],[33,2,33,11],[46,2,46,9],[47,2,47,10],[48,2,48,11]]}
[null,"Outil permettant de déterminer l'échelle des consommations\nd'énergie et de production de gaz à effet de serre\nà partir des relevés des consommations"]
[]
[null,null,"Bâtiment"]
[]
[null,null,null,"Usage principal du bâtiment",null,null,null,null,null,null,null,null,null,null,"Habitation"]
[]
[null,null,null,null,null,null,null,null,null,null,null,"Surface du bâtiment",null,null,75,null,"m²"]
[]
[]
[null,null,"Moyenne annuelle des consommations (1)"]
[]
[null,null,null,"Source d'énergie",null,null,null,null,null,null,null,null,"Consommation annuelle"]
[]
[null,null,"Électricité (hors électricité d’origine renouvelable utilisée dans le bâtiment)",null,null,null,null,null,null,null,null,null,3716,null,null,null,{"$f":"IF(C14=\"\",\"\",VLOOKUP(C14,coefEnergie,5,FALSE))","v":"kWh par an"},null,null,null,{"$f":"IF(C14=\"\",\"0\",VLOOKUP(C14,coefEnergie,2,FALSE))","v":2.58},{"$f":"IF(C14=\"\",\"0\",VLOOKUP(C14,coefEnergie,3,FALSE))","v":8.4000000000000005E-2}]
[]
[null,null,"Plaquettes forestières",null,null,null,null,null,null,null,null,null,0.48,null,null,null,{"$f":"IF(C16=\"\",\"\",VLOOKUP(C16,coefEnergie,5,FALSE))","v":"tonnes par an"},null,null,null,{"$f":"IF(C16=\"\",\"0\",VLOOKUP(C16,coefEnergie,2,FALSE))","v":2760},{"$f":"IF(C16=\"\",\"0\",VLOOKUP(C16,coefEnergie,3,FALSE))","v":35.879999999999995}]
[]
[null,null,null,null,null,null,null,null,null,null,null,null,null,null,null,null,{"$f":"IF(C18=\"\",\"\",VLOOKUP(C18,coefEnergie,5,FALSE))","v":""},null,null,null,{"$f":"IF(C18=\"\",\"0\",VLOOKUP(C18,coefEnergie,2,FALSE))","v":"0"},{"$f":"IF(C18=\"\",\"0\",VLOOKUP(C18,coefEnergie,3,FALSE))","v":"0"}]
[]
[null,null,null,null,null,null,null,null,null,null,null,null,null,null,null,null,null,null,null,null,{"$f":"M14*U14+M16*U16+M18*U18","v":10912.08},{"$f":"M14*V14+M16*V16+M18*V18","v":329.3664}]
[null,null,null,null,null,null,null,null,null,null,null,null,null,null,null,null,null,null,null,null,{"$f":"ROUND(U20/surface,0)","v":145},{"$f":"ROUND(V20/surface,0)","v":4}]
[]
[null,null,"Etiquette énergétique"]
[null,null,{"$f":"IF(batiment=\"habitation\",\"Logement économe\",\"Batiment économe\")","v":"Logement économe"},null,null,null,null,null,null,null,null,null,null,null,{"$f":"IF(batiment=\"habitation\",\"Logement\",\"Batiment\")","v":"Logement"}]
[]
[null,"Consommation énergétique\nen kWh/m².an en énergie primaire","< 50",null,"A",null,null,null,null,null,null,null,null,null,{"$f":"IF(energetique<V26,energetique,\"\")","v":""},null,"Plus le bâtiment consomme des kWh/m².an, plus le bâtiment est énergivore.\n\nLa moyenne du parc français se situe autour de\n240 kWh/m².an (classe E).",null,null,null,null,50]
[null,null,"51 à 90",null,null,"B",null,null,null,null,null,null,null,null,{"$f":"IF(energetique>=U27,IF(energetique<V27,energetique,\"\"),\"\")","v":""},null,null,null,null,null,50,90]
[null,null,"91 à 150",null,null,null,"C",null,null,null,null,null,null,null,145,null,null,null,null,null,90,150]
[null,null,"151 à 230",null,null,null,null,"D",null,null,null,null,null,null,"",null,null,null,null,null,150,230]
[null,null,"231 à 330",null,null,null,null,null,"E",null,null,null,null,null,"",null,null,null,null,null,230,330]
[null,null,"331 à 450",null,null,null,null,null,null,"F",null,null,null,null,"",null,null,null,null,null,330,450]
[null,null,{"$f":"IF(batiment=\"habitation\",\"> 450\",\"451 à 590\")","v":"> 450"},null,null,null,null,null,null,null,"G",null,null,null,"",null,null,null,null,null,450,590]
[null,null,{"$f":"IF(batiment=\"habitation\",0,\"591 à 750\")","v":0},null,null,null,null,null,null,null,null,{"$f":"IF(batiment=\"habitation\",0,\"H\")","v":0},null,null,"",null,null,null,null,null,590,750]
[null,null,{"$f":"IF(batiment=\"habitation\",0,\"> 750\")","v":0},null,null,null,null,null,null,null,null,null,{"$f":"IF(batiment=\"habitation\",0,\"I\")","v":0},null,{"$f":"IF(energetique>=U34,energetique,0)","v":0},null,null,null,null,null,750]
[null,null,{"$f":"IF(batiment=\"habitation\",\"Logement énergivore\",\"Batiment énergivore\")","v":"Logement énergivore"}]
[]
[null,null,null,null,null,null,null,null,null,null,null,null,null,null,"kWh / m².an"]
[null,null,"Etiquette climat"]
[null,null,"Faible émission de GES",null,null,null,null,null,null,null,null,null,null,null,{"$f":"IF(batiment=\"habitation\",\"Logement\",\"Batiment\")","v":"Logement"}]
[]
[null,"Emissions de gaz à effet de serre\nen kg eq CO2 / m².an","< 5",null,"A",null,null,null,null,null,null,null,null,null,{"$f":"IF(climat<V41,climat,\"\")","v":4},null,"L'étiquette \"Climat\" est déterminée par la production de gaz à effet de serre (GES), production exprimée en équivalent de kg CO2/m².an.",null,null,null,null,5]
[null,null,"6 à 10",null,null,"B",null,null,null,null,null,null,null,null,{"$f":"IF(climat>=U42,IF(climat<V42,climat,\"\"),\"\")","v":""},null,null,null,null,null,5,10]
[null,null,"11 à 20",null,null,null,"C",null,null,null,null,null,null,null,"",null,null,null,null,null,10,20]
[null,null,"21 à 35",null,null,null,null,"D",null,null,null,null,null,null,"",null,null,null,null,null,20,35]
[null,null,"36 à 55",null,null,null,null,null,"E",null,null,null,null,null,"",null,null,null,null,null,35,55]
[null,null,"56 à 80",null,null,null,null,null,null,"F",null,null,null,null,"",null,null,null,null,null,55,80]
[null,null,{"$f":"IF(batiment=\"habitation\",\"> 80\",\"81 à 110\")","v":"> 80"},null,null,null,null,null,null,null,"G",null,null,null,"",null,null,null,null,null,80,110]
[null,null,{"$f":"IF(batiment=\"habitation\",0,\"110 à 145\")","v":0},null,null,null,null,null,null,null,null,{"$f":"IF(batiment=\"habitation\",0,\"H\")","v":0},null,null,"",null,null,null,null,null,110,145]
[null,null,{"$f":"IF(batiment=\"habitation\",0,\"> 145\")","v":0},null,null,null,null,null,null,null,null,null,{"$f":"IF(batiment=\"habitation\",0,\"I\")","v":0},null,{"$f":"IF(climat>=U49,climat,0)","v":0},null,null,null,null,null,145]
[null,null,"Forte émission de GES"]
[]
[null,null,null,null,null,null,null,null,null,null,null,null,null,null," kg eq CO2 / m².an"]
[]
["(1)","Chauffage + Eau chaude Sanitaire + Refroidissement"]
[null,"Retirer les consommation liées à l'éclairage et aux autres usages"]
[null,"Pour estimer les consommations électriques, consulter l'onglet \"Lisez-moi\""]
[]
["Le comportement de l'usager peut améliorer ou détériorer la performance énergétique d'un bâtiment. Un bâtiment très bien isolé avec les portes ouvertes et un chauffage à 22° nuit et jour produirait une piètre performance. L'occupant est le premier générateur d'économies d'énergie. Il est acteur dans ses choix de confort, de température, de programmation et de comportement tout simplement."]
[]
["L'énergie finale est l'énergie nécessaire au chauffage, à la production d'eau chaude sanitaire et au refroidissement. Par quantité annuelle d'énergie finale nécessaire au chauffage, on entend les besoins en énergie liés aux déperditions thermiques par l'enveloppe du bâtiment, les pertes des systèmes thermiques, les déperditions thermiques par renouvellement d'air, diminués des apports internes de la maison et des apports solaires.\nLes compteurs d'énergie affichent une quantité d'énergie finale. Les étiquettes sont calculées en énergie primaire après conversion de l'énergie finale."]

{"sheet":"Equivalences","index":1,"n_rows":32,"n_cols":12,"rows_kept":32,"cut":false,"hidden":false,"merged":[[24,2,24,5],[25,2,25,5],[26,2,26,5],[15,2,15,5],[16,2,16,5],[17,2,17,5],[18,2,18,5],[27,2,27,5],[28,2,28,5],[12,6,12,7],[13,6,13,7],[14,6,14,7],[15,6,15,7],[16,6,16,7],[17,6,17,7],[18,6,18,7],[19,6,19,7],[23,6,23,7],[24,6,24,7],[19,2,19,5],[20,2,20,5],[21,2,21,5],[22,2,22,5],[20,6,20,7],[21,6,21,7],[22,6,22,7],[23,2,23,5],[0,1,0,9],[31,1,31,9],[27,6,27,7],[28,6,28,7],[4,4,4,5],[12,2,12,5],[25,6,25,7],[26,6,26,7],[13,2,13,5],[14,2,14,5]]}
[null,"Outil pour calculer les équivalences\nentre les consommations d'énergies"]
[]
[null,"Consommation annuelle"]
[]
[null,null,"Energie",null,"Électricité (hors électricité d’origine renouvelable utilisée dans le bâtiment)",null,null,2200,{"$f":"IF(estimation=\"\",\"\",VLOOKUP(estimation,coefEnergie,5,FALSE))","v":"kWh par an"},null,null,{"$f":"IF(estimation=\"\",\"\",VLOOKUP(estimation,coefenergies,7,FALSE))","v":1}]
[]
[]
[]
[]
[]
[null,"Equivalences"]
[]
[null,null,{"$f":"Coefficients!A14","v":"Plaquettes forestières"},null,null,null,{"$f":"IF(ISERROR(conso*conversion/L13),\"\",conso*conversion/L13)","v":0.79710144927536231},null,{"$f":"IF(C13=\"\",\"\",VLOOKUP(C13,coefEnergie,5,FALSE))","v":"tonnes par an"},null,null,{"$f":"IF(C13=\"\",\"\",VLOOKUP(C13,coefenergies,7,FALSE))","v":2760}]
[null,null,{"$f":"Coefficients!A15","v":"Granulés, briquettes"},null,null,null,0.47826086956521741,null,"tonnes par an",null,null,4600]
[null,null,{"$f":"Coefficients!A16","v":"Bûches"},null,null,null,1.3095238095238095,null,"stères par an",null,null,1680]
[null,null,{"$f":"Coefficients!A17","v":"Gaz naturel (kWh)"},null,null,null,2442.0000000000005,null,"kWh par an",null,null,0.9009009009009008]
[null,null,{"$f":"Coefficients!A18","v":"Gaz naturel (m3)"},null,null,null,189.19848641210871,null,"m3 par an",null,null,11.628]
[null,null,{"$f":"Coefficients!A19","v":"Gaz propane (tonne)"},null,null,null,0.15942028985507245,null,"tonnes par an",null,null,13800]
[null,null,{"$f":"Coefficients!A20","v":"Gaz propane (m3)"},null,null,null,189.19848641210871,null,"m3 par an",null,null,11.628]
[null,null,{"$f":"Coefficients!A21","v":"Gaz butane (tonne)"},null,null,null,0.17214397496087636,null,"tonnes par an",null,null,12780]
[null,null,{"$f":"Coefficients!A22","v":"Gaz butane (litre)"},null,null,null,318.84057971014494,null,"litres par an",null,null,6.9]
[null,null,{"$f":"Coefficients!A23","v":"Gaz butane (m3)"},null,null,null,189.19848641210871,null,"m3 par an",null,null,11.628]
[null,null,{"$f":"Coefficients!A24","v":"Fioul domestique"},null,null,null,220.66198595787361,null,"litres par an",null,null,9.9700000000000006]
[null,null,{"$f":"Coefficients!A25","v":"Électricité (hors électricité d’origine renouvelable utilisée dans le bâtiment)"},null,null,null,2200,null,"kWh par an",null,null,1]
[null,null,{"$f":"Coefficients!A26","v":"Électricité d’origine renouvelable utilisée dans le bâtiment"},null,null,null,2200,null,"kWh par an",null,null,1]
[null,null,{"$f":"Coefficients!A27","v":"Charbon : Houille"},null,null,null,0.30462475768485187,null,"tonnes par an",null,null,7222]
[null,null,{"$f":"Coefficients!A28","v":"Charbon : Coke de houille"},null,null,null,0.28284906145538696,null,"tonnes par an",null,null,7778]
[null,null,{"$f":"Coefficients!A29","v":"Charbon : Agglomérés et briquettes de lignite"},null,null,null,0.24749690628867138,null,"tonnes par an",null,null,8889]
[null,null,{"$f":"Coefficients!A30","v":"Charbon : Lignite et produits de récupération"},null,null,null,0.46590427784836935,null,"tonnes par an",null,null,4722]
[]
[]
[null,"Les équivalences sont calculées à partir des données citées dans l'Annexe 3.1 de l'arrêté du 15 septembre 2006. Les consommations sont exprimées en énergie finale.\n\nL'énergie finale est l'énergie nécessaire au chauffage, à la production d'eau chaude sanitaire et au refroidissement. Par quantité annuelle d'énergie finale nécessaire au chauffage, on entend les besoins en énergie liés aux déperditions thermiques par l'enveloppe du bâtiment, les pertes des systèmes thermiques, les déperditions thermiques par renouvellement d'air, diminués des apports internes de la maison et des apports solaires."]

{"sheet":"Lisez-moi","index":2,"n_rows":26,"n_cols":1,"rows_kept":26,"cut":false,"hidden":false,"merged":[]}
[]
["Cet outil a été réalisé à but d'information et de sensibilisation."]
[]
["Cet outil a été réalisé pour aider les consommateurs à connaître l'état énergétique de son logement ou de son bâtiment à partir des relevés de consommation par type d'énergie."]
[]
["Il est conseillé de prendre en compte la moyenne des consommations des trois dernières années pour lisser les aléas climatiques et la rigueur ou non de l'hiver."]
[]
["Le comportement de l'usager peut améliorer ou détériorer la performance énergétique d'un bâtiment. Un bâtiment très bien isolé avec les portes ouvertes et un chauffage à 22° nuit et jour produirait une piètre performance. L'occupant est le premier générateur d'économies d'énergie. Il est acteur dans ses choix de confort, de température, de programmation et de comportement tout simplement."]
[]
["L'outil reprend les classements et étiquettes du DPE."]
[]
["Cet outil n'est pas un outil de diagnostic de performance énergétique."]
[]
[]
["Estimer la consommation électrique à prendre en compte"]
[]
[" * Chauffage électrique"]
[]
["Si le chauffage de l'habitation est électrique, attribuer 70 % de la facture d'électricité pour le chauffage et l'eau chaude sanitaire."]
[]
["Si seul le chauffe-eau de l'habitation est électrique, attribuer 16 % de la consommation pour l'eau chaude sanitaire (ECS)."]
["Source : revue Habitat Naturel (Hors-série N°6 - Avril 2009)"]
[]
[]
[]
["Avril 2010"]

{"sheet":"Coefficients","index":3,"n_rows":36,"n_cols":22,"rows_kept":36,"cut":false,"hidden":false,"merged":[[12,20,12,21],[12,17,12,18],[12,6,12,7],[10,14,10,15],[12,3,12,4],[12,9,12,10],[12,14,12,15]]}
["Principe des calculs de conversion de l'énergie finale en énergie primaire"]
[]
[]
[]
[]
[]
[]
[]
[]
[]
[null,null,null,"PCS",null,null,null,null,null,"PCI",null,null,null,null,"Consommation",null,null,null,null,null,"GES"]
[]
["Énergie","Coef EF","Coef GES","Moyenne annuelle des consommations (1)",null,null,"Conversion en kWh\ndes énergies mesurées (2)",null,null,"Énergie finale\nen kWh par an",null,null,"Facteur de conversion de l'énergie finale en énergie primaire (3)",null,"Énergie primaire (EP)\nen kWh par an",null,null,"Facteur de conversion (4)",null,null,"Emission de Gaz\nà Effet de Serre (GES)"]
["Plaquettes forestières",{"$f":"SUM(G14*M14)","v":2760},{"$f":"SUM(G14*R14)","v":35.879999999999995},"PCS","tonnes par an",null,2760,"kWh par tonne",null,"PCI","kWh / an",null,1,null,"EP","kWh / an",null,1.2999999999999999E-2,"kg éq. CO2 par kWh",null,"GES","kg éq. CO2 / an"]
["Granulés, briquettes",{"$f":"SUM(G15*M15)","v":4600},{"$f":"SUM(G15*R15)","v":59.8},"PCS","tonnes par an",null,4600,"kWh par tonne",null,"PCI","kWh / an",null,1,null,"EP","kWh / an",null,1.2999999999999999E-2,"kg éq. CO2 par kWh",null,"GES","kg éq. CO2 / an"]
["Bûches",1680,21.84,"PCS","stères par an",null,1680,"kWh par stère",null,"PCI","kWh / an",null,1,null,"EP","kWh / an",null,1.2999999999999999E-2,"kg éq. CO2 par kWh",null,"GES","kg éq. CO2 / an"]
["Gaz naturel (kWh)",0.9009009009009008,0.21081081081081079,"PCS","kWh par an",null,{"$f":"1/1.11","v":0.9009009009009008},"kWh par kWh",null,"PCI","kWh / an",null,1,null,"EP","kWh / an",null,0.23400000000000001,"kg éq. CO2 par kWh",null,"GES","kg éq. CO2 / an"]
["Gaz naturel (m3)",{"$f":"SUM(G18*M18)","v":11.628},{"$f":"SUM(G18*R18)","v":2.720952},"PCS","m3 par an",null,11.628,"kWh par m3",null,"PCI","kWh / an",null,1,null,"EP","kWh / an",null,0.23400000000000001,"kg éq. CO2 par kWh",null,"GES","kg éq. CO2 / an"]
["Gaz propane (tonne)",13800,3781.2000000000003,"PCS","tonnes par an",null,13800,"kWh par tonne",null,"PCI","kWh / an",null,1,null,"EP","kWh / an",null,0.27400000000000002,"kg éq. CO2 par kWh",null,"GES","kg éq. CO2 / an"]
["Gaz propane (m3)",{"$f":"SUM(G20*M20)","v":11.628},{"$f":"SUM(G20*R20)","v":3.1860720000000002},"PCS","m3 par an",null,11.628,"kWh par m3",null,"PCI","kWh / an",null,1,null,"EP","kWh / an",null,0.27400000000000002,"kg éq. CO2 par kWh",null,"GES","kg éq. CO2 / an"]
["Gaz butane (tonne)",12780,3501.7200000000003,"PCS","tonnes par an",null,12780,"kWh par tonne",null,"PCI","kWh / an",null,1,null,"EP","kWh / an",null,0.27400000000000002,"kg éq. CO2 par kWh",null,"GES","kg éq. CO2 / an"]
["Gaz butane (litre)",6.9,1.8906000000000003,"PCS","litres par an",null,6.9,"kWh par litre",null,"PCI","kWh / an",null,1,null,"EP","kWh / an",null,0.27400000000000002,"kg éq. CO2 par kWh",null,"GES","kg éq. CO2 / an"]
["Gaz butane (m3)",{"$f":"SUM(G23*M23)","v":11.628},{"$f":"SUM(G23*R23)","v":3.1860720000000002},"PCS","m3 par an",null,11.628,"kWh par m3",null,"PCI","kWh / an",null,1,null,"EP","kWh / an",null,0.27400000000000002,"kg éq. CO2 par kWh",null,"GES","kg éq. CO2 / an"]
["Fioul domestique",9.9700000000000006,2.9910000000000001,"PCS","litres par an",null,9.9700000000000006,"kWh par litre",null,"PCI","kWh / an",null,1,null,"EP","kWh / an",null,0.3,"kg éq. CO2 par kWh",null,"GES","kg éq. CO2 / an"]
["Électricité (hors électricité d’origine renouvelable utilisée dans le bâtiment)",2.58,8.4000000000000005E-2,"PCS","kWh par an",null,1,"kWh par kWh",null,"PCI","kWh / an",null,2.58,null,"EP","kWh / an",null,8.4000000000000005E-2,"kg éq. CO2 par kWh",null,"GES","kg éq. CO2 / an"]
["Électricité d’origine renouvelable utilisée dans le bâtiment",{"$f":"SUM(G26*M26)","v":2.58},{"$f":"SUM(G26*R26)","v":0},"PCS","kWh par an",null,1,"kWh par kWh",null,"PCI","kWh / an",null,2.58,null,"EP","kWh / an",null,0,"kg éq. CO2 par kWh",null,"GES","kg éq. CO2 / an"]
["Charbon : Houille",{"$f":"SUM(G27*M27)","v":7222},{"$f":"SUM(G27*R27)","v":2773.248},"PCS","tonnes par an",null,7222,"kWh par tonne",null,null,"kWh / an",null,1,null,"EP","kWh / an",null,0.38400000000000001,"kg éq. CO2 par kWh",null,"GES","kg éq. CO2 / an"]
["Charbon : Coke de houille",{"$f":"SUM(G28*M28)","v":7778},{"$f":"SUM(G28*R28)","v":2986.752},"PCS","tonnes par an",null,7778,"kWh par tonne",null,null,"kWh / an",null,1,null,"EP","kWh / an",null,0.38400000000000001,"kg éq. CO2 par kWh",null,"GES","kg éq. CO2 / an"]
["Charbon : Agglomérés et briquettes de lignite",{"$f":"SUM(G29*M29)","v":8889},{"$f":"SUM(G29*R29)","v":3413.3760000000002},"PCS","tonnes par an",null,8889,"kWh par tonne",null,null,"kWh / an",null,1,null,"EP","kWh / an",null,0.38400000000000001,"kg éq. CO2 par kWh",null,"GES","kg éq. CO2 / an"]
["Charbon : Lignite et produits de récupération",4722,1813.248,"PCS","tonnes par an",null,4722,"kWh par tonne",null,"PCI","kWh / an",null,1,null,"EP","kWh / an",null,0.38400000000000001,"kg éq. CO2 par kWh",null,"GES","kg éq. CO2 / an"]
[]
["(1)",null,null,"Chauffage + Eau chaude Sanitaire + Refroidissement",null,null,null,null,null,null,null,"Valeur saisie (relévé de compteur…)"]
[null,null,null,"Retirer les consommation liées à l'éclairage, autres usages",null,null,null,null,null,null,null,"Constante"]
["(2)",null,null,"cf. Annexe 3.1 de l'arrêté du 15 septembre 2006",null,null,null,null,null,null,null,"Valeur calculée"]
["(3)",null,null,"cf. Annexe 3.2 de l'arrêté du 15 septembre 2006"]
["(4)",null,null,"cf. Annexe 4.1.2 de l'arrêté du 15 septembre 2006"]